fUST/lending_fUST_20250719
["ID","MTS","AMOUNT","RATE_DAILY","PERIOD"]
[373183289,1752894647163,-3000.0,0.0002107,2]
[373183291,1752894647173,-3000.0,0.0002108,2]
[373183293,1752894647183,-3000.0,0.0002109,2]
[373183295,1752894647193,-581.0,0.00021095,2]
[373183297,1752894647203,-1368.69,0.00021095,2]
[373183299,1752894647212,-480.6,0.00021095,2]
[373183301,1752894647222,-687.79,0.00021095,2]
[373183303,1752894647232,-1214.65,0.00021095,2]
[373183305,1752894647242,-693.12,0.00021095,2]
[373183307,1752894647252,-493.69,0.00021095,2]
[373183309,1752894647262,-828.5,0.00021095,2]
[373183311,1752894647272,-538.49,0.00021095,2]
[373183313,1752894647282,-2219.56,0.00021095,2]
[373183315,1752894647293,-883.53,0.00021095,2]
[373183317,1752894647303,-1269.42,0.00021095,2]
[373183319,1752894647313,-919.37,0.00021095,2]
[373183320,1752894647323,-467.37,0.00021095,2]
[373183322,1752894647333,-558.76464819,0.00021095,2]
[373183324,1752894647343,-1407.53,0.00021095,2]
[373183326,1752894647353,-1625.19,0.00021095,2]
[373183328,1752894647363,-803.47,0.00021095,2]
[373183330,1752894647373,-3266.14,0.00021095,2]
[373183332,1752894647383,-460.0,0.00021095,2]
[373183334,1752894647393,-309.0,0.00021096,3]
[373183336,1752894647402,-151.0,0.00021096,2]
[373183338,1752894647412,-151.0,0.00021096,2]
[373183340,1752894647422,-500.0,0.00021096,2]
[373183342,1752894647432,-3000.0,0.000211,2]
[373183344,1752894647442,-3000.0,0.0002111,2]
[373183346,1752894647452,-501.51906247,0.00021119,2]
[373183348,1752894647461,-501.04531724,0.00021119,2]
[373183350,1752894647471,-500.0,0.00021119,2]
[373183352,1752894647482,-500.0,0.00021119,2]
[373183354,1752894647492,-3000.0,0.0002112,2]
[373183356,1752894647502,-618.97160078,0.00021126,2]
[373183357,1752894647511,-3000.0,0.0002113,2]
[373183359,1752894647521,-3000.0,0.0002114,2]
[373183361,1752894647531,-3000.0,0.0002115,2]
[373183363,1752894647541,-3000.0,0.0002116,2]
[373183365,1752894647551,-3000.0,0.0002117,2]
[373183367,1752894647561,-3000.0,0.0002118,2]
[373183369,1752894647571,-500.0,0.00021183,2]
[373183371,1752894647580,-3000.0,0.0002119,2]
[373183373,1752894647592,-3000.0,0.000212,2]
[373183375,1752894647602,-3000.0,0.0002121,2]
[373183377,1752894647611,-3000.0,0.0002122,2]
[373183379,1752894647621,-3000.0,0.0002123,2]
[373183381,1752894647631,-3000.0,0.0002124,2]
[373183383,1752894647641,-2431.45398484,0.00021245,4]
[373183385,1752894647651,-3000.0,0.0002125,2]
[373183387,1752894647661,-3000.0,0.0002126,2]
[373183389,1752894647672,-3000.0,0.0002127,2]
[373183390,1752894647682,-3000.0,0.0002128,2]
[373183392,1752894647691,-760.0,0.00021288,2]
[373183394,1752894647701,-3000.0,0.0002129,2]
[373183396,1752894647711,-3000.0,0.000213,2]
[373183398,1752894647720,-3000.0,0.0002131,2]
[373183400,1752894647730,-7356.9806417,0.00021314,2]
[373183402,1752894647740,-3000.0,0.0002132,2]
[373183405,1752894647750,-3000.0,0.0002133,2]
[373183407,1752894647766,-25000.0,0.00021336,2]
[373183409,1752894647775,-217.40428983,0.00021336,2]
[373183410,1752894647785,-3000.0,0.0002134,2]
[373183412,1752894647795,-3000.0,0.0002135,2]
[373183414,1752894647805,-3000.0,0.0002136,2]
[373183416,1752894647815,-581.0,0.00021369,2]
[373183418,1752894647825,-1368.69,0.00021369,2]
[373183420,1752894647834,-480.6,0.00021369,2]
[373183422,1752894647844,-687.79,0.00021369,2]
[373183424,1752894647855,-1214.65,0.00021369,2]
[373183426,1752894647865,-693.12,0.00021369,2]
[373183428,1752894647875,-493.69,0.00021369,2]
[373183430,1752894647884,-828.5,0.00021369,2]
[373183432,1752894647894,-538.49,0.00021369,2]
[373183434,1752894647903,-2219.56,0.00021369,2]
[373183436,1752894647913,-883.53,0.00021369,2]
[373183438,1752894647922,-1269.42,0.00021369,2]
[373183440,1752894647932,-919.37,0.00021369,2]
[373183442,1752894647941,-467.37,0.00021369,2]
[373183444,1752894647950,-1407.53,0.00021369,2]
[373183445,1752894647959,-1625.19,0.00021369,2]
[373183447,1752894647969,-803.47,0.00021369,2]
[373183449,1752894647979,-3266.14,0.00021369,2]
[373183451,1752894647988,-460.0,0.00021369,2]
[373183453,1752894647998,-199.784375,0.0002137,2]
[373183455,1752894648007,-151.0,0.0002137,2]
[373183457,1752894648017,-500.0,0.0002137,2]
[373183459,1752894648026,-3000.0,0.0002137,2]
[373183461,1752894648036,-800.0,0.00021378,2]
[373183463,1752894648057,-3000.0,0.0002138,2]
[373183465,1752894648069,-3000.0,0.0002139,2]
[373183467,1752894648080,-306.0,0.00021397,2]
[373183469,1752894648091,-153.0,0.00021397,2]
[373183471,1752894648102,-153.0,0.00021397,2]
[373183473,1752894648112,-3000.0,0.000214,2]
[373183475,1752894648122,-3000.0,0.0002141,2]
[373183476,1752894648132,-3000.0,0.0002142,2]
[373183478,1752894648142,-3000.0,0.0002143,2]
[373183480,1752894648152,-3167.895784,0.0002144,2]
[373183482,1752894648162,-7356.9806417,0.00021442,2]
[373183484,1752894648171,-435.73994914,0.00021444,2]
[373183486,1752894648181,-823.0,0.00021454,2]
[373183488,1752894648190,-270.099582,0.00021515,2]
[373183490,1752894648199,-151.0,0.00021515,2]
[373183492,1752894648209,-151.0,0.00021515,2]
[373183494,1752894648218,-151.0,0.00021515,2]
[373183495,1752894648228,-151.0,0.00021515,2]
[373183497,1752894648238,-151.0,0.00021515,2]
[373183499,1752894648248,-2431.45398484,0.00021555,5]
[373183501,1752894648257,-250.0,0.00021588,2]
[373183503,1752894648267,-158.0,0.000216,3]
[373183504,1752894648276,-158.0,0.000216,3]
[373183506,1752894648285,-158.0,0.000216,3]
[373183508,1752894648295,-581.0,0.00021643,2]
[373183510,1752894648306,-1368.69,0.00021643,2]
[373183512,1752894648315,-480.6,0.00021643,2]
[373183514,1752894648325,-687.79,0.00021643,2]
[373183516,1752894648335,-151.0,0.00021643,2]
[373183517,1752894648345,-1214.65,0.00021643,2]
[373183519,1752894648355,-693.12,0.00021643,2]
[373183521,1752894648364,-493.69,0.00021643,2]
[373183523,1752894648374,-828.5,0.00021643,2]
[373183525,1752894648386,-538.49,0.00021643,2]
[373183527,1752894648397,-151.0,0.00021643,2]
[373183529,1752894648407,-2219.56,0.00021643,2]
[373183531,1752894648416,-883.53,0.00021643,2]
[373183532,1752894648427,-1269.42,0.00021643,2]
[373183534,1752894648437,-919.37,0.00021643,2]
[373183536,1752894648447,-467.37,0.00021643,2]
[373183538,1752894648457,-1407.53,0.00021643,2]
[373183540,1752894648467,-1625.19,0.00021643,2]
[373183542,1752894648477,-803.47,0.00021643,2]
[373183544,1752894648487,-151.0,0.00021643,2]
[373183546,1752894648497,-151.0,0.00021643,2]
[373183547,1752894648507,-3266.14,0.00021643,2]
[373183549,1752894648517,-460.0,0.00021643,2]
[373183551,1752894648527,-240.52807795,0.00021644,2]
[373183553,1752894648538,-500.0,0.00021644,2]
[373183555,1752894648549,-503.40908628,0.00021667,2]
[373183557,1752894648559,-501.15015757,0.00021667,2]
[373183559,1752894648569,-7356.98064173,0.00021681,2]
[373183561,1752894648579,-800.0,0.00021684,2]
[373183562,1752894648591,-290.0,0.00021706,2]
[373183564,1752894648601,-290.0,0.00021725,2]
[373183566,1752894648611,-1000.0,0.00021731,2]
[373183568,1752894648620,-600.0,0.00021829,2]
[373183570,1752894648631,-860.0,0.00021836,2]
[373183572,1752894648641,-160.0,0.00021853,3]
[373183574,1752894648651,-2431.45398484,0.00021866,6]
[373183576,1752894648660,-305.33086894,0.00021873,2]
[373183578,1752894648670,-170.18971475,0.00021873,2]
[373183579,1752894648679,-150.44874067,0.00021873,2]
[373183581,1752894648690,-500.0,0.00021873,2]
[373183583,1752894648700,-25000.0,0.00021884,2]
[373183585,1752894648710,-153.794426,0.00021884,2]
[373183587,1752894648719,-151.0,0.00021884,2]
[373183589,1752894648730,-151.0,0.00021884,2]
[373183591,1752894648739,-151.0,0.00021884,2]
[373183592,1752894648749,-1000.0,0.000219,2]
[373183594,1752894648759,-1000.0,0.000219,2]
[373183596,1752894648770,-1000.0,0.000219,2]
[373183598,1752894648781,-1000.0,0.000219,2]
[373183600,1752894648790,-1000.0,0.000219,2]
[373183602,1752894648802,-1000.0,0.000219,2]
[373183603,1752894648811,-1000.0,0.000219,2]
[373183605,1752894648821,-1000.0,0.000219,2]
[373183607,1752894648831,-1000.0,0.000219,2]
[373183609,1752894648841,-1000.0,0.000219,2]
[373183611,1752894648851,-1000.0,0.000219,2]
[373183613,1752894648860,-1000.0,0.000219,2]
[373183615,1752894648870,-1000.0,0.000219,2]
[373183617,1752894648880,-1000.0,0.000219,2]
[373183618,1752894648889,-1000.0,0.000219,2]
[373183620,1752894648899,-1000.0,0.000219,2]
[373183622,1752894648909,-1000.0,0.000219,2]
[373183624,1752894648919,-1000.0,0.000219,2]
[373183626,1752894648929,-1000.0,0.000219,2]
[373183628,1752894648939,-1000.0,0.000219,2]
[373183630,1752894648949,-1000.0,0.000219,2]
[373183632,1752894648958,-1000.0,0.000219,2]
[373183634,1752894648969,-1000.0,0.000219,2]
[373183636,1752894648978,-1000.0,0.000219,2]
[373183638,1752894648988,-1000.0,0.000219,2]
[373183640,1752894648997,-1000.0,0.000219,2]
[373183641,1752894649007,-1000.0,0.000219,2]
[373183643,1752894649017,-1000.0,0.000219,2]
[373183645,1752894649027,-1000.0,0.000219,2]
[373183647,1752894649037,-1000.0,0.000219,2]
[373183649,1752894649049,-1000.0,0.000219,2]
[373183651,1752894649059,-1000.0,0.000219,2]
[373183653,1752894649070,-1000.0,0.000219,2]
[373183655,1752894649080,-1000.0,0.000219,2]
[373183657,1752894649090,-1000.0,0.000219,2]
[373183659,1752894649100,-1000.0,0.000219,2]
[373183661,1752894649109,-1000.0,0.000219,2]
[373183663,1752894649119,-1000.0,0.000219,2]
[373183665,1752894649128,-1000.0,0.000219,2]
[373183666,1752894649138,-1000.0,0.000219,2]
[373183668,1752894649148,-1000.0,0.000219,2]
[373183670,1752894649158,-1000.0,0.000219,2]
[373183672,1752894649167,-1000.0,0.000219,2]
[373183674,1752894649176,-1000.0,0.000219,2]
[373183676,1752894649186,-404.59,0.000219,2]
[373183678,1752894649196,-1000.0,0.000219,2]
[373183680,1752894649205,-1000.0,0.000219,2]
[373183681,1752894649215,-1000.0,0.000219,2]
[373183683,1752894649225,-1000.0,0.000219,2]
[373183685,1752894649234,-1000.0,0.000219,2]
[373183687,1752894649244,-1000.0,0.000219,2]
[373183689,1752894649254,-1000.0,0.000219,2]
[373183691,1752894649264,-1000.0,0.000219,2]
[373183693,1752894649274,-1000.0,0.000219,2]
[373183696,1752894649293,-1000.0,0.000219,2]
[373183698,1752894649304,-1000.0,0.000219,2]
[373183699,1752894649313,-1000.0,0.000219,2]
[373183701,1752894649323,-1000.0,0.000219,2]
[373183703,1752894649333,-1000.0,0.000219,2]
[373183705,1752894649342,-1000.0,0.000219,2]
[373183707,1752894649352,-1000.0,0.000219,2]
[373183709,1752894649362,-1000.0,0.000219,2]
[373183711,1752894649371,-1000.0,0.000219,2]
[373183713,1752894649381,-1000.0,0.000219,2]
[373183715,1752894649391,-151.0,0.000219,2]
[373183717,1752894649405,-153.243988,0.000219,2]
[373183719,1752894649414,-152.450528,0.000219,2]
[373183721,1752894649423,-151.0,0.000219,2]
[373183722,1752894649433,-151.0,0.000219,2]
[373183723,1752894649442,-290.592293,0.000219,2]
[373183724,1752894649452,-290.592293,0.000219,2]
[373183725,1752894649462,-151.0,0.000219,2]
[373183726,1752894649471,-151.0,0.000219,2]
[373183727,1752894649481,-151.0,0.000219,2]
[373183728,1752894649490,-151.0,0.000219,2]
[373183729,1752894649500,-151.0,0.000219,2]
[373183730,1752894649510,-151.0,0.000219,2]
[373183731,1752894649519,-151.0,0.000219,2]
[373183732,1752894649529,-151.0,0.000219,2]
[373183733,1752894649538,-151.0,0.000219,2]
[373183734,1752894649548,-262.51255,0.000219,2]
[373183735,1752894649557,-262.51255,0.000219,2]
[373183736,1752894649567,-581.0,0.00021917,2]
[373183737,1752894649576,-1368.69,0.00021917,2]
[373183738,1752894649588,-480.6,0.00021917,2]
[373183739,1752894649598,-687.79,0.00021917,2]
[373183740,1752894649608,-1214.65,0.00021917,2]
[373183741,1752894649617,-693.12,0.00021917,2]
[373183742,1752894649627,-493.69,0.00021917,2]
[373183743,1752894649637,-828.5,0.00021917,2]
[373183744,1752894649646,-538.49,0.00021917,2]
[373183745,1752894649655,-2219.56,0.00021917,2]
[373183746,1752894649666,-883.53,0.00021917,2]
[373183747,1752894649676,-1269.42,0.00021917,2]
[373183748,1752894649685,-548.21,0.00021917,2]
[373183749,1752894649694,-548.21,0.00021917,2]
[373183750,1752894649704,-919.37,0.00021917,2]
[373183751,1752894649713,-548.21,0.00021917,2]
[373183752,1752894649723,-467.37,0.00021917,2]
[373183753,1752894649732,-548.21,0.00021917,2]
[373183754,1752894649742,-548.21,0.00021917,2]
[373183755,1752894649752,-548.21,0.00021917,2]
[373183756,1752894649761,-548.21,0.00021917,2]
[373183757,1752894649771,-548.21,0.00021917,2]
[373183758,1752894649781,-548.21,0.00021917,2]
[373183759,1752894649790,-548.21,0.00021917,2]
[373183760,1752894649801,-548.21,0.00021917,2]
[373183761,1752894649811,-548.21,0.00021917,2]
[373183762,1752894649820,-548.21,0.00021917,2]
[373183763,1752894649830,-548.21,0.00021917,2]
[373183764,1752894649839,-548.21,0.00021917,2]
[373183765,1752894649849,-548.21,0.00021917,2]
[373183766,1752894649858,-548.21,0.00021917,2]
[373183767,1752894649867,-548.21,0.00021917,2]
[373183768,1752894649877,-548.21,0.00021917,2]
[373183769,1752894649887,-548.21,0.00021917,2]
[373183770,1752894649896,-548.21,0.00021917,2]
[373183771,1752894649905,-1407.53,0.00021917,2]
[373183772,1752894649915,-1625.19,0.00021917,2]
[373183773,1752894649925,-803.47,0.00021917,2]
[373183774,1752894649935,-3266.14,0.00021917,2]
[373183775,1752894649944,-460.0,0.00021917,2]
[373183776,1752894649953,-200.0,0.00021918,2]
[373183778,1752894649962,-150.0,0.00021918,2]
[373183779,1752894649972,-500.0,0.00021918,2]
[373183781,1752894649982,-290.0,0.00021944,2]
[373183782,1752894649991,-150.0,0.00021973,2]
[373183784,1752894650002,-5871.52993855,0.00022,2]
[373183786,1752894650011,-500.0,0.00022,8]
[373183788,1752894650021,-500.0,0.00022,8]
[373183790,1752894650031,-3930.36321574,0.00022,7]
[373183823,1752894650333,-2275.62678426,0.00022,7]
[373183825,1752894650343,-2646.83,0.00022,7]
[373183827,1752894650352,-160.33965086,0.00022,2]
[373183829,1752894650362,-160.33965087,0.00022,2]
[373183831,1752894650372,-109.27471407,0.00022,2]
[373183833,1752894650384,-4438.58662662,0.00022,2]
[373183835,1752894650394,-152.212899,0.00022,7]
[373183836,1752894650404,-151.0,0.00022,7]
[373183837,1752894650413,-151.0,0.00022,7]
[373183838,1752894650423,-250.847265,0.00022,7]
[373183839,1752894650432,-151.0,0.00022,7]
[373183840,1752894650441,-665.54243671,0.00022,7]
[373183841,1752894650452,-304.46844193,0.00022,7]
[373183842,1752894650564,-3431.05445889,0.00022,7]
[373183843,1752894650576,-7809.49249049,0.00022,7]
[373183844,1752894650588,-1572.74325422,0.00022,7]
[373183845,1752894650601,-340.365,0.00022,7]
[373183852,1752894650746,-275.5607214,0.00016438,2]
[373183854,1752894650768,-184.4392786,0.00016438,2]
[373183856,1752894650778,-357.6357214,0.00016712,2]
[373183858,1752894650790,-102.3642786,0.00016712,2]
[373183860,1752894650799,-460.0,0.00016986,2]
[373183862,1752894650809,-92.38362143,0.0001726,2]
[373183871,1752894676281,444.92302,0.00013699,2]
[373183874,1752894870753,24900.0,0.00016123,2]
[373183875,1752894890178,5000.0,0.000163,2]
[373183876,1752894906950,5000.0,0.000163,2]
[373183877,1752894922170,2602.36516575,0.000163,2]
[373183878,1752894922197,2397.63483425,0.000163,2]
[373183879,1752894927084,150.0,0.00014629,2]
[373183880,1752894927532,150.0,0.00015325,2]
[373183881,1752894928068,150.0,0.00016022,2]
[373183882,1752894937614,5000.0,0.000163,2]
[373183883,1752894953384,5000.0,0.000163,2]
[373183884,1752894969264,5000.0,0.000163,2]
[373183885,1752894986670,5000.0,0.000163,2]
[373183886,1752895003078,2503.78059355,0.000163,2]
[373183887,1752895018760,5000.0,0.000163,2]
[373183888,1752895035573,1858.42004301,0.000163,2]
[373183889,1752895084541,3141.57995699,0.000163,2]
[373183890,1752895167560,-229.64773822,0.00016338,2]
[373183891,1752895167756,-1200.0,0.00016437,2]
[373183892,1752895167781,-300.0,0.00016437,2]
[373183893,1752895167806,-460.0,0.00016438,2]
[373183894,1752895167829,-460.0,0.00016438,2]
[373183895,1752895167853,-460.0,0.00016438,2]
[373183896,1752895167878,-460.0,0.00016438,2]
[373183897,1752895167903,-460.0,0.00016438,2]
[373183898,1752895167926,-471.38970439,0.00016438,2]
[373183899,1752895167949,-468.23606961,0.00016438,2]
[373183900,1752895167972,-460.0,0.00016438,2]
[373183901,1752895167995,-460.0,0.00016438,2]
[373183902,1752895168020,-460.0,0.00016438,2]
[373183903,1752895168044,-460.0,0.00016438,2]
[373183904,1752895168070,-460.0,0.00016438,2]
[373183905,1752895168095,-460.0,0.00016438,2]
[373183906,1752895168118,-460.0,0.00016438,2]
[373183907,1752895168142,-460.0,0.00016438,2]
[373183908,1752895168168,-460.0,0.00016438,2]
[373183909,1752895168190,-460.0,0.00016438,2]
[373183910,1752895168216,-460.0,0.00016438,2]
[373183911,1752895168239,-460.0,0.00016438,2]
[373183912,1752895168263,-460.0,0.00016438,2]
[373183913,1752895168289,-460.0,0.00016438,2]
[373183914,1752895168314,-460.0,0.00016438,2]
[373183915,1752895168338,-443.31537529,0.00016438,2]
[373183916,1752895168360,-467.33901594,0.00016438,2]
[373183917,1752895168383,-460.0,0.00016438,2]
[373183918,1752895168406,-460.0,0.00016438,2]
[373183919,1752895168429,-460.0,0.00016438,2]
[373183920,1752895168453,-460.0,0.00016438,2]
[373183921,1752895168476,-460.0,0.00016438,2]
[373183922,1752895168499,-460.0,0.00016438,2]
[373183923,1752895168522,-460.0,0.00016438,2]
[373183924,1752895168544,-460.0,0.00016438,2]
[373183925,1752895168567,-313.07049304,0.00016438,2]
[373183926,1752895168589,-460.0,0.00016438,2]
[373183927,1752895168613,-460.0,0.00016438,2]
[373183928,1752895168638,-460.0,0.00016438,2]
[373183929,1752895168663,-460.0,0.00016438,2]
[373183930,1752895168687,-460.0,0.00016438,2]
[373183931,1752895168712,-575.34814417,0.00016438,2]
[373183932,1752895168740,-553.86410214,0.00016438,2]
[373183933,1752895168765,-460.0,0.00016438,2]
[373183934,1752895168789,-460.0,0.00016438,2]
[373183935,1752895168815,-460.0,0.00016438,2]
[373183936,1752895168839,-460.0,0.00016438,2]
[373183937,1752895168867,-460.0,0.00016438,2]
[373183938,1752895168890,-460.0,0.00016438,2]
[373183939,1752895168912,-460.0,0.00016438,2]
[373183940,1752895168936,-460.0,0.00016438,2]
[373183941,1752895168960,-460.0,0.00016438,2]
[373183942,1752895168986,-460.0,0.00016438,2]
[373183943,1752895169012,-460.0,0.00016438,2]
[373183944,1752895169035,-460.0,0.00016438,2]
[373183945,1752895169058,-460.0,0.00016438,2]
[373183946,1752895169083,-460.0,0.00016438,2]
[373183947,1752895169108,-460.0,0.00016438,2]
[373183948,1752895169134,-460.0,0.00016438,2]
[373183949,1752895169156,-460.0,0.00016438,2]
[373183950,1752895169179,-460.0,0.00016438,2]
[373183951,1752895169203,-672.42,0.00016438,2]
[373183952,1752895169226,-581.83,0.00016438,2]
[373183953,1752895169249,-460.0,0.00016438,2]
[373183954,1752895169273,-460.0,0.00016438,2]
[373183955,1752895169296,-460.0,0.00016438,2]
[373183956,1752895169319,-460.0,0.00016438,2]
[373183957,1752895169342,-609.72599939,0.00016438,2]
[373183958,1752895169364,-460.0,0.00016438,2]
[373183959,1752895169388,-460.0,0.00016438,2]
[373183960,1752895169411,-460.0,0.00016438,2]
[373183961,1752895169434,-460.0,0.00016438,2]
[373183962,1752895169457,-460.0,0.00016438,2]
[373183963,1752895169479,-460.0,0.00016438,2]
[373183964,1752895169503,-460.0,0.00016438,2]
[373183965,1752895169525,-308.86235924,0.00016438,2]
[373183966,1752895169549,-460.0,0.00016438,2]
[373183967,1752895169571,-460.0,0.00016438,2]
[373183968,1752895169594,-460.0,0.00016438,2]
[373183969,1752895169617,-460.0,0.00016438,2]
[373183970,1752895169641,-460.0,0.00016438,2]
[373183971,1752895169663,-460.0,0.00016438,2]
[373183972,1752895169686,-460.0,0.00016438,2]
[373183973,1752895169708,-460.0,0.00016438,2]
[373183974,1752895169730,-460.0,0.00016438,2]
[373183975,1752895169758,-460.0,0.00016438,2]
[373183976,1752895169781,-460.0,0.00016438,2]
[373183977,1752895169806,-460.0,0.00016438,2]
[373183978,1752895169829,-460.0,0.00016438,2]
[373183979,1752895169854,-460.0,0.00016438,2]
[373183980,1752895169879,-460.0,0.00016438,2]
[373183981,1752895169903,-430.30440681,0.00016438,2]
[373183982,1752895169928,-460.0,0.00016438,2]
[373183983,1752895169953,-240.0,0.00016438,2]
[373183984,1752895169979,-460.0,0.00016438,2]
[373183985,1752895170004,-460.0,0.00016438,2]
[373183986,1752895170026,-377.54185181,0.00016438,2]
[373183987,1752895170050,-460.0,0.00016438,2]
[373183988,1752895170073,-460.0,0.00016438,2]
[373183989,1752895170097,-460.0,0.00016438,2]
[373183990,1752895170120,-460.0,0.00016438,2]
[373183991,1752895170142,-460.0,0.00016438,2]
[373183992,1752895170165,-460.0,0.00016438,2]
[373183993,1752895170189,-460.0,0.00016438,2]
[373183994,1752895170211,-460.0,0.00016438,2]
[373183995,1752895170234,-460.0,0.00016438,2]
[373183996,1752895170258,-464.55347186,0.00016438,2]
[373183997,1752895170281,-460.0,0.00016438,2]
[373183998,1752895170303,-460.0,0.00016438,2]
[373183999,1752895170326,-235.69800794,0.00016438,2]
[373184000,1752895170465,-460.0,0.00016438,2]
[373184001,1752895170489,-460.0,0.00016438,2]
[373184002,1752895170519,-544.36,0.00016438,2]
[373184003,1752895170542,-460.0,0.00016438,2]
[373184004,1752895170565,-460.0,0.00016438,2]
[373184005,1752895170587,-460.0,0.00016438,2]
[373184006,1752895170611,-460.0,0.00016438,2]
[373184007,1752895170636,-460.0,0.00016438,2]
[373184008,1752895170658,-460.0,0.00016438,2]
[373184009,1752895170683,-769.33,0.00016438,2]
[373184010,1752895170706,-565.69590547,0.00016438,2]
[373184011,1752895170732,-460.0,0.00016438,2]
[373184012,1752895170757,-460.0,0.00016438,2]
[373184013,1752895170781,-460.0,0.00016438,2]
[373184014,1752895170804,-460.0,0.00016438,2]
[373184015,1752895170829,-460.0,0.00016438,2]
[373184016,1752895170852,-460.0,0.00016438,2]
[373184017,1752895170875,-460.0,0.00016438,2]
[373184018,1752895170900,-1112.07,0.00016438,2]
[373184019,1752895170924,-460.0,0.00016438,2]
[373184020,1752895170947,-460.0,0.00016438,2]
[373184021,1752895170971,-460.0,0.00016438,2]
[373184022,1752895170995,-460.0,0.00016438,2]
[373184023,1752895171020,-460.0,0.00016438,2]
[373184024,1752895171043,-460.0,0.00016438,2]
[373184025,1752895171067,-460.0,0.00016438,2]
[373184026,1752895171091,-460.0,0.00016438,2]
[373184027,1752895171114,-460.0,0.00016712,2]
[373184028,1752895171136,-460.0,0.00016712,2]
[373184029,1752895171159,-460.0,0.00016712,2]
[373184030,1752895171182,-460.0,0.00016712,2]
[373184031,1752895171205,-460.0,0.00016712,2]
[373184032,1752895171229,-460.0,0.00016712,2]
[373184033,1752895171255,-460.0,0.00016712,2]
[373184034,1752895171279,-460.0,0.00016712,2]
[373184035,1752895171303,-460.0,0.00016712,2]
[373184036,1752895171327,-460.0,0.00016712,2]
[373184037,1752895171351,-460.0,0.00016712,2]
[373184038,1752895171373,-460.0,0.00016712,2]
[373184039,1752895171398,-460.0,0.00016712,2]
[373184040,1752895171422,-460.0,0.00016712,2]
[373184041,1752895171444,-460.0,0.00016712,2]
[373184042,1752895171467,-460.0,0.00016712,2]
[373184043,1752895171490,-460.0,0.00016712,2]
[373184044,1752895171515,-460.0,0.00016712,2]
[373184045,1752895171538,-460.0,0.00016712,2]
[373184046,1752895171560,-476.0910512,0.00016712,2]
[373184047,1752895171584,-460.0,0.00016712,2]
[373184048,1752895171607,-460.0,0.00016712,2]
[373184049,1752895171630,-460.0,0.00016712,2]
[373184050,1752895171653,-460.0,0.00016712,2]
[373184051,1752895171677,-460.0,0.00016712,2]
[373184052,1752895171700,-460.0,0.00016712,2]
[373184053,1752895171723,-460.0,0.00016712,2]
[373184054,1752895171750,-460.0,0.00016712,2]
[373184055,1752895171779,-460.0,0.00016712,2]
[373184056,1752895171803,-315.2790359,0.00016712,2]
[373184057,1752895171830,-460.0,0.00016712,2]
[373184058,1752895171858,-460.0,0.00016712,2]
[373184059,1752895171882,-460.0,0.00016712,2]
[373184060,1752895171908,-460.0,0.00016712,2]